bitfinex/quotes_BTCUSD_20241205
["timestamp","ask_amount","ask_price","bid_price","bid_amount"]
[1733400012118,0.53583541,102590.0,102580.0,2.42611434]
[1733400012357,0.63096257,102590.0,102580.0,2.33252371]
[1733400012625,0.63096257,102590.0,102580.0,2.22485871]
[1733400012626,0.71106257,102590.0,102580.0,2.22485871]
[1733400012914,0.194969,102580.0,102570.0,0.001735]
[1733400013179,0.33827814,102570.0,102560.0,0.0017354]
[1733400013412,0.33827814,102570.0,102560.0,0.00179413]
[1733400013413,0.60751848,102570.0,102560.0,0.00179413]
[1733400013643,0.56118883,102570.0,102560.0,0.00179413]
[1733400013875,0.53587341,102570.0,102560.0,0.00179413]
[1733400014131,0.61174251,102570.0,102560.0,0.00179413]
[1733400014624,0.50216289,102570.0,102560.0,0.00179413]
[1733400014863,0.51116289,102570.0,102560.0,0.00179413]
[1733400015595,0.52016289,102570.0,102560.0,0.00179413]
[1733400015831,0.62974251,102570.0,102560.0,0.00179413]
[1733400016292,0.1,102550.0,102520.0,0.02111981]
[1733400016537,0.195064,102530.0,102520.0,0.02111981]
[1733400016772,0.30643126,102530.0,102520.0,0.02129642]
[1733400017056,0.29474005,102530.0,102520.0,0.02129642]
[1733400017299,0.40431967,102530.0,102520.0,0.20017661]
[1733400018474,0.40431967,102530.0,102520.0,0.00017661]
[1733400018685,0.30374005,102530.0,102520.0,0.00017661]
[1733400019124,0.39408102,102530.0,102520.0,0.00017661]
[1733400019356,0.01169121,102510.0,102500.0,0.047]
[1733400019649,0.11136726,102510.0,102500.0,0.1600435]
[1733400020496,0.09967605,102510.0,102500.0,0.35614002]
[1733400020702,0.213064,102530.0,102510.0,0.195083]
[1733400020703,0.02069121,102530.0,102510.0,0.195083]
[1733400020930,0.10867605,102530.0,102520.0,0.35273794]
[1733400021150,0.01169121,102550.0,102530.0,0.195064]
[1733400021373,0.09967605,102540.0,102530.0,0.50067279]
[1733400021559,0.09967605,102550.0,102540.0,0.242145]
[1733400021798,0.09967605,102550.0,102540.0,0.35172462]
[1733400022445,0.09967605,102550.0,102540.0,0.43042462]
[1733400024029,0.0994119,102550.0,102540.0,0.43042462]
[1733400025530,0.01169121,102580.0,102560.0,0.195007]
[1733400025745,0.09967605,102570.0,102560.0,0.39]
[1733400026208,0.00017612,102580.0,102570.0,0.194988]
[1733400026433,0.09985217,102580.0,102570.0,0.43704246]
[1733400026649,0.00017612,102580.0,102570.0,0.54564724]
[1733400027073,0.16169121,102590.0,102580.0,0.10957962]
[1733400027277,0.26136726,102590.0,102580.0,0.30454862]
[1733400028768,0.24967605,102590.0,102580.0,0.30454862]
[1733400028994,0.26136726,102590.0,102580.0,0.30454862]
[1733400029839,0.26136726,102590.0,102580.0,0.30554862]
[1733400030310,0.26136726,102590.0,102580.0,0.30454862]
[1733400031851,0.24967605,102590.0,102580.0,0.30554862]
[1733400032060,0.26136726,102590.0,102580.0,0.30554862]
[1733400035180,0.26136726,102590.0,102580.0,0.195969]
[1733400035409,0.26136726,102590.0,102580.0,0.19694373]
[1733400036456,0.24967605,102590.0,102580.0,0.19694373]
[1733400036679,0.26136726,102590.0,102580.0,0.19694373]
[1733400037698,0.11136726,102590.0,102580.0,0.19694373]
[1733400039469,0.01169121,102610.0,102600.0,0.194931]
[1733400039670,0.11136726,102610.0,102600.0,0.30548521]
[1733400039872,0.11136726,102610.0,102600.0,0.30451062]
[1733400040295,0.11136726,102610.0,102600.0,0.50451062]
[1733400040925,0.12036726,102610.0,102600.0,0.50451062]
[1733400041931,0.11767605,102610.0,102600.0,0.50451062]
[1733400044180,0.12936726,102610.0,102600.0,0.394931]
[1733400045504,0.12839246,102610.0,102600.0,0.394931]
[1733400045703,0.11670125,102610.0,102600.0,0.394931]
[1733400046115,0.12839246,102610.0,102600.0,0.394931]
[1733400046332,0.11670125,102610.0,102600.0,0.394931]
[1733400046529,0.12839246,102610.0,102600.0,0.394931]
[1733400046734,0.11670125,102610.0,102600.0,0.394931]
[1733400048274,0.12839246,102610.0,102600.0,0.394931]
[1733400052250,0.11670125,102610.0,102600.0,0.50451062]
[1733400052445,0.018,102610.0,102600.0,0.66399024]
[1733400052662,0.018,102610.0,102600.0,0.66572704]
[1733400052943,0.0188684,102610.0,102600.0,0.66572704]
[1733400053146,0.0188684,102610.0,102600.0,0.55614742]
[1733400054089,0.0188684,102610.0,102600.0,0.5590033]
[1733400055031,0.0188684,102610.0,102600.0,0.66858292]
[1733400056185,0.00912567,102610.0,102600.0,0.66858292]
[1733400056415,0.00912567,102610.0,102600.0,0.74708292]
[1733400056672,0.07081688,102630.0,102600.0,0.83539171]
[1733400056897,0.10026487,102630.0,102620.0,0.30447262]
[1733400057114,0.10026487,102630.0,102620.0,0.49935762]
[1733400058185,0.10926487,102630.0,102620.0,0.49935762]
[1733400058611,0.10926487,102630.0,102620.0,0.389778]
[1733400058822,0.10926487,102630.0,102620.0,0.49935762]
[1733400059702,0.11826487,102630.0,102620.0,0.50035762]
[1733400061526,0.11826487,102630.0,102620.0,0.51097141]
[1733400062239,0.01858882,102630.0,102620.0,0.76660986]
[1733400062466,0.01858882,102630.0,102620.0,0.65703024]
[1733400063174,0.00958882,102630.0,102620.0,0.65603024]
[1733400063645,0.00058882,102630.0,102620.0,0.65703024]
[1733400063876,0.00058882,102630.0,102620.0,0.65803024]
[1733400064120,0.00058882,102630.0,102620.0,0.26825224]
[1733400064543,0.00058882,102630.0,102620.0,0.46313024]
[1733400064755,0.00058882,102630.0,102620.0,0.65801524]
[1733400065838,0.00145722,102630.0,102620.0,0.65801524]
[1733400066269,0.00145722,102630.0,102620.0,0.76759486]
[1733400066940,0.00145722,102630.0,102620.0,0.65801524]
[1733400067790,0.00145722,102630.0,102620.0,0.85590365]
[1733400068037,0.0008681,102650.0,102630.0,0.08830879]
[1733400068255,0.00098279,102650.0,102640.0,0.4309086]
[1733400068470,0.00098279,102650.0,102640.0,0.51824341]
[1733400068959,0.00098279,102650.0,102640.0,0.71824341]
[1733400069417,0.00098279,102650.0,102640.0,0.97782303]
[1733400069864,0.00098279,102650.0,102640.0,0.97882303]
[1733400070114,0.00098279,102650.0,102640.0,1.07849908]
[1733400070369,0.00098279,102650.0,102640.0,1.13011836]
[1733400070656,0.0817,102690.0,102670.0,0.194783]
[1733400070902,0.18137605,102690.0,102680.0,0.3053324]
[1733400071159,0.09063685,102700.0,102680.0,0.30435862]
[1733400071403,0.1903129,102700.0,102690.0,0.30433962]
[1733400073542,0.1993129,102700.0,102690.0,0.30533962]
[1733400073772,0.2083129,102700.0,102690.0,0.30633962]
[1733400074031,0.4030539,102700.0,102690.0,0.002]
[1733400074634,0.57184231,102700.0,102690.0,0.002]
[1733400075163,0.29276,102690.0,102680.0,0.2]
[1733400075402,0.54781567,102690.0,102680.0,0.2]
[1733400076632,0.55681567,102690.0,102680.0,0.2]
[1733400076858,0.44723605,102690.0,102680.0,0.2]
[1733400077304,0.45623605,102690.0,102680.0,0.2]
[1733400077549,0.56581567,102690.0,102680.0,0.2]
[1733400077790,0.45623605,102690.0,102680.0,0.2]
[1733400081832,0.66581567,102690.0,102680.0,0.2]
[1733400082041,0.66581567,102690.0,102680.0,0.1219]
[1733400082946,0.20651921,102660.0,102640.0,0.48039064]
[1733400083167,0.09967605,102650.0,102640.0,0.48039064]
[1733400083630,0.09967605,102650.0,102640.0,0.68039064]
[1733400083874,0.29451205,102650.0,102640.0,0.48553664]
[1733400084318,0.09967605,102650.0,102640.0,0.68050633]
[1733400084529,0.09967605,102650.0,102640.0,0.68250633]
[1733400084739,0.29451205,102650.0,102640.0,0.68250633]
[1733400084956,0.29451205,102650.0,102640.0,0.22807171]
[1733400084957,0.30620326,102650.0,102640.0,0.22807171]
[1733400085178,0.39451205,102650.0,102640.0,0.22511469]
[1733400085657,0.09967605,102650.0,102640.0,0.52954931]
[1733400085894,0.11136726,102650.0,102640.0,0.52954931]
[1733400086646,0.09967605,102650.0,102640.0,0.52954931]
[1733400087765,0.09967605,102650.0,102640.0,0.22511469]
[1733400087995,0.47251205,102650.0,102640.0,0.22511469]
[1733400088891,0.47251205,102650.0,102640.0,0.22684989]
[1733400090965,0.47251205,102650.0,102640.0,0.22484989]
[1733400091596,0.49051205,102650.0,102640.0,0.22484989]
[1733400092050,0.48151205,102650.0,102640.0,0.22484989]
[1733400092281,0.38151205,102650.0,102640.0,0.22484989]
[1733400092553,0.39051205,102650.0,102640.0,0.22484989]
[1733400093040,0.38151205,102650.0,102640.0,0.22484989]
[1733400093254,0.39051205,102650.0,102640.0,0.22484989]
[1733400095824,0.41251205,102650.0,102640.0,0.22484989]
[1733400096058,0.32420326,102650.0,102640.0,0.22484989]
[1733400096287,0.11767605,102650.0,102640.0,0.52928451]
[1733400096776,0.11767605,102650.0,102640.0,0.57818451]
[1733400097638,0.10867605,102650.0,102640.0,0.57818451]
[1733400098746,0.009,102650.0,102640.0,0.55518451]
[1733400098978,0.20649121,102670.0,102640.0,0.63448451]
[1733400098979,0.01169121,102670.0,102640.0,0.63448451]
[1733400099200,0.09967605,102670.0,102660.0,0.45439662]
[1733400099417,0.09967605,102670.0,102660.0,0.45438762]
[1733400100798,0.11767605,102670.0,102660.0,0.45438762]
[1733400101042,0.10867605,102670.0,102660.0,0.45438762]
[1733400101903,0.09967605,102670.0,102660.0,0.45438762]
[1733400102300,0.09967605,102670.0,102660.0,0.45838762]
[1733400102997,0.09967605,102670.0,102660.0,0.348817]
[1733400104091,0.29447405,102670.0,102660.0,0.154]
[1733400104299,0.09967605,102670.0,102660.0,0.348817]
[1733400105144,0.09967605,102670.0,102660.0,0.45839662]
[1733400110455,0.29447405,102670.0,102660.0,0.45839662]
[1733400110680,0.29447405,102670.0,102660.0,0.154]
[1733400111145,0.29447405,102670.0,102660.0,0.26357962]
[1733400111364,0.09967605,102670.0,102660.0,0.45839662]
[1733400112235,0.29447405,102670.0,102660.0,0.26357962]
[1733400112823,0.29447405,102670.0,102660.0,0.154]
[1733400113273,0.29447405,102670.0,102660.0,0.348817]
[1733400113689,0.29447405,102670.0,102660.0,0.45839662]
[1733400114123,0.47277405,102670.0,102660.0,0.154]
[1733400118248,0.49264677,102670.0,102660.0,0.154]
[1733400119213,0.39264677,102670.0,102660.0,0.154]
[1733400119437,0.49264677,102670.0,102660.0,0.154]
[1733400121880,0.47277405,102670.0,102660.0,0.154]
[1733400122585,0.01169121,102660.0,102640.0,0.79403687]
[1733400122813,0.09967605,102650.0,102640.0,0.59918887]
[1733400123989,0.09967605,102650.0,102640.0,0.60118887]
[1733400124893,0.09967605,102650.0,102640.0,0.60318887]
[1733400125715,0.09967605,102650.0,102640.0,0.71566118]
[1733400125930,0.29451205,102650.0,102640.0,0.20594018]
[1733400126158,0.48380326,102650.0,102640.0,0.20594018]
[1733400126615,0.47211205,102650.0,102640.0,0.20594018]
[1733400127114,0.47211205,102650.0,102640.0,0.20394018]
[1733400127353,0.50469167,102650.0,102640.0,0.19904749]
[1733400127640,0.44041205,102650.0,102640.0,0.19904749]
[1733400128561,0.54041205,102650.0,102640.0,0.19904749]
[1733400128819,0.44041205,102650.0,102640.0,0.19904749]
[1733400129047,0.44941205,102650.0,102640.0,0.19904749]
[1733400129504,0.54941205,102650.0,102640.0,0.19904749]
[1733400130226,0.44941205,102650.0,102640.0,0.19904749]
[1733400130898,0.45841205,102650.0,102640.0,0.19904749]
[1733400132757,0.47803148,102650.0,102640.0,0.19904749]
[1733400132981,0.7376111,102650.0,102640.0,0.19904749]
[1733400134874,0.62803148,102650.0,102640.0,0.19904749]
[1733400135559,0.7376111,102650.0,102640.0,0.19904749]
[1733400135772,0.30656521,102630.0,102610.0,0.00473026]
[1733400135986,0.09967605,102620.0,102610.0,0.00473026]
[1733400136209,0.29456905,102620.0,102610.0,0.00473026]
[1733400136878,0.40626026,102620.0,102610.0,0.00473026]
[1733400137090,0.60544867,102620.0,102610.0,0.1217368]
[1733400137538,0.49586905,102620.0,102610.0,0.1217368]
[1733400137769,0.49586905,102620.0,102610.0,0.1227368]
[1733400138231,0.49586905,102620.0,102610.0,0.1217368]
[1733400139317,0.194933,102600.0,102580.0,0.65971921]
[1733400139583,0.48955305,102600.0,102580.0,0.46477221]
[1733400139787,0.09967605,102590.0,102580.0,0.26980321]
[1733400139994,0.09967605,102590.0,102580.0,0.38980321]
[1733400140693,0.09967605,102590.0,102580.0,0.39039203]
[1733400140906,0.09967605,102590.0,102580.0,0.40086833]
[1733400141111,0.09967605,102590.0,102580.0,0.28086833]
[1733400142226,0.09967605,102590.0,102580.0,0.28379747]
[1733400147046,0.09967605,102590.0,102580.0,0.28553387]
[1733400148920,0.28576541,102620.0,102600.0,0.194931]
[1733400149125,0.09967605,102610.0,102600.0,0.30548514]
[1733400149379,0.09967605,102610.0,102600.0,0.30451062]
[1733400149805,0.0008682,102620.0,102610.0,0.194912]
[1733400150016,0.0008682,102620.0,102610.0,0.30546598]
[1733400150215,0.0008682,102620.0,102610.0,0.30449162]
[1733400150216,0.0098682,102620.0,102610.0,0.30449162]
[1733400150869,0.0008682,102620.0,102610.0,0.30449162]
[1733400152389,0.0008682,102620.0,102610.0,0.38309162]
[1733400152594,0.0008682,102620.0,102610.0,0.52010041]
[1733400153004,0.0008682,102620.0,102610.0,0.52110041]
[1733400154318,0.0008682,102620.0,102610.0,0.53148367]
[1733400154970,0.0008682,102620.0,102610.0,0.64106329]
[1733400155380,0.15,102650.0,102640.0,0.194855]
[1733400155595,0.15,102650.0,102640.0,0.67171753]
[1733400155855,0.15,102650.0,102640.0,0.67074341]
[1733400156677,0.15017633,102650.0,102640.0,0.67074341]
[1733400156888,0.14043535,102650.0,102640.0,0.67074341]
[1733400157089,0.00017633,102650.0,102640.0,0.67174341]
[1733400157294,0.00017633,102650.0,102640.0,0.67374341]
[1733400157496,0.00017633,102650.0,102640.0,0.67274341]
[1733400157704,0.00017633,102650.0,102640.0,0.78132303]
[1733400158111,0.00017633,102650.0,102640.0,0.78332303]
[1733400158932,0.00104483,102650.0,102640.0,0.88299908]
[1733400159151,0.000868,102670.0,102660.0,0.08830879]
[1733400159375,0.000868,102670.0,102660.0,0.82883482]
[1733400159582,0.000868,102670.0,102660.0,0.82786108]
[1733400160247,0.000868,102670.0,102660.0,0.84710614]
[1733400160462,0.000868,102670.0,102660.0,0.84910614]
[1733400165247,0.000868,102670.0,102660.0,0.56395047]
[1733400165474,0.000868,102670.0,102660.0,0.45639662]
[1733400165683,0.15966584,102680.0,102660.0,0.84602162]
[1733400165910,0.25934189,102680.0,102670.0,0.10957962]
[1733400166147,0.25934189,102680.0,102660.0,0.84602162]
[1733400166364,0.09967605,102680.0,102670.0,0.30437762]
[1733400167729,0.127,102690.0,102680.0,0.194779]
[1733400167949,0.22667605,102690.0,102680.0,0.30533241]
[1733400168164,0.22667605,102690.0,102680.0,0.30435862]
[1733400168824,0.17727605,102690.0,102680.0,0.30435862]
[1733400169040,0.17745245,102690.0,102680.0,0.30435862]
[1733400169684,0.17745245,102690.0,102680.0,0.30535862]
[1733400170330,0.18914366,102690.0,102680.0,0.30635862]
[1733400170529,0.19001216,102690.0,102680.0,0.30635862]
[1733400171152,0.19001216,102690.0,102680.0,0.196779]
[1733400171588,0.19001216,102690.0,102680.0,0.30635862]
[1733400171794,0.17832095,102690.0,102680.0,0.30635862]
[1733400172006,0.19001216,102690.0,102680.0,0.30635862]
[1733400173972,0.19001216,102690.0,102680.0,0.002]
[1733400174192,0.38477216,102690.0,102680.0,0.002]
[1733400174616,0.43187216,102690.0,102680.0,0.002]
[1733400182504,0.40687216,102690.0,102680.0,0.002]
[1733400183642,0.40687216,102690.0,102680.0,0.00499176]
[1733400184982,0.42987216,102690.0,102680.0,0.00499176]
[1733400187098,0.41818095,102690.0,102680.0,0.00499176]
[1733400187699,0.271598,102670.0,102650.0,0.55560638]
[1733400187942,0.271598,102670.0,102650.0,0.665186]
[1733400187943,0.37127405,102670.0,102650.0,0.665186]
[1733400188154,0.37127405,102670.0,102660.0,0.00292032]
[1733400189243,0.17647605,102670.0,102660.0,0.19773732]
[1733400189484,0.37127405,102670.0,102660.0,0.00292032]
[1733400189686,0.37127405,102670.0,102650.0,0.30440662]
[1733400189888,0.37127405,102670.0,102660.0,0.001]
[1733400190106,0.37127405,102670.0,102660.0,0.002]
[1733400190596,0.37127405,102670.0,102660.0,0.001]
[1733400191058,0.37127405,102670.0,102650.0,0.72498609]
[1733400191494,0.37127405,102670.0,102660.0,0.00097398]
[1733400191710,0.37127405,102670.0,102660.0,0.1105536]
[1733400192844,0.37127405,102670.0,102660.0,0.11444571]
[1733400193075,0.09967605,102670.0,102660.0,0.31099791]
[1733400193303,0.09967605,102670.0,102660.0,0.31002393]
[1733400193509,0.33260511,102690.0,102670.0,0.389587]
[1733400193748,0.09967605,102680.0,102670.0,0.389587]
[1733400195911,0.009,102690.0,102680.0,0.45435862]
[1733400196123,0.009,102690.0,102680.0,0.53595862]
[1733400196352,0.0008692,102700.0,102680.0,0.87962308]
[1733400196576,0.0008692,102700.0,102690.0,0.41489273]
[1733400196828,0.0008692,102700.0,102690.0,0.41391924]
[1733400197249,0.0008692,102700.0,102690.0,0.30433962]
[1733400197912,0.0008692,102700.0,102690.0,0.41391924]
[1733400199255,0.0008692,102700.0,102690.0,0.41591924]
[1733400199876,0.0008692,102700.0,102690.0,0.42851483]
[1733400202209,0.0008692,102700.0,102690.0,0.38973783]
[1733400202431,0.0008692,102700.0,102690.0,0.39073783]
[1733400202656,0.0008692,102700.0,102690.0,0.39173783]
[1733400203095,0.0008692,102700.0,102690.0,0.39073783]
[1733400203518,0.0008692,102700.0,102690.0,0.39173783]
[1733400204380,0.0008692,102700.0,102690.0,0.54173783]
[1733400206973,0.0008692,102700.0,102690.0,0.43215821]
[1733400207624,0.10054525,102700.0,102690.0,0.16459559]
[1733400207840,0.29528625,102700.0,102690.0,0.16359559]
[1733400208069,0.29528625,102700.0,102690.0,0.27317521]
[1733400208511,0.10054525,102700.0,102690.0,0.46693521]
[1733400208736,0.29528625,102700.0,102690.0,0.27217521]
[1733400208944,0.29528625,102700.0,102690.0,0.16259559]
[1733400209169,0.38677746,102700.0,102690.0,0.16259559]
[1733400209393,0.37508625,102700.0,102690.0,0.16459559]
[1733400210155,0.37508625,102700.0,102690.0,0.16359559]
[1733400210397,0.38408625,102700.0,102690.0,0.16359559]
[1733400210628,0.39308625,102700.0,102690.0,0.16459559]
[1733400210866,0.44098625,102700.0,102690.0,0.152]
[1733400215250,0.55056587,102700.0,102690.0,0.152]
[1733400215731,0.8153416,102700.0,102690.0,0.002]
[1733400215947,0.8153416,102700.0,102680.0,0.1501764]
[1733400215948,0.32106,102690.0,102680.0,0.1501764]
[1733400216206,0.63031567,102690.0,102680.0,0.1501764]
[1733400216682,0.63539404,102690.0,102680.0,0.1501764]
[1733400217141,0.54439404,102690.0,102680.0,0.1511764]
[1733400217370,0.73457201,102690.0,102680.0,0.1501764]
[1733400217834,0.73457201,102690.0,102680.0,0.0011764]
[1733400217835,0.75257201,102690.0,102680.0,0.0011764]
[1733400220470,0.77206254,102690.0,102680.0,0.0011764]
[1733400220979,0.78525499,102690.0,102680.0,4e-07]
[1733400221176,0.448079,102680.0,102670.0,0.0017352]
[1733400221396,0.65733467,102680.0,102670.0,0.0017352]
[1733400221818,0.75525389,102680.0,102670.0,0.0017352]
[1733400222022,0.65525389,102680.0,102670.0,2e-07]
[1733400222231,0.55733467,102680.0,102670.0,2e-07]
[1733400222750,0.11169121,102670.0,102660.0,0.0017352]
[1733400223002,0.53035367,102670.0,102660.0,2e-07]
[1733400224058,0.54835367,102670.0,102660.0,2e-07]
[1733400224288,0.53935367,102670.0,102660.0,2e-07]
[1733400224574,0.53035367,102670.0,102660.0,2e-07]
[1733400225659,0.63227289,102670.0,102660.0,2e-07]
[1733400226500,0.64127289,102670.0,102660.0,2e-07]
[1733400228191,0.75085251,102670.0,102660.0,2e-07]
[1733400228712,0.78268117,102670.0,102660.0,2e-07]
[1733400229114,0.194912,102610.0,102600.0,0.15673469]
[1733400229349,0.29458805,102610.0,102600.0,0.15673469]
[1733400229780,0.29458805,102610.0,102600.0,0.13699189]
[1733400230407,0.29458805,102610.0,102600.0,0.09228071]
[1733400230747,0.30627926,102610.0,102600.0,0.07908882]
[1733400231393,0.32927926,102610.0,102600.0,0.07908882]
[1733400231560,0.31758805,102610.0,102600.0,0.00058882]
[1733400231761,0.42716767,102610.0,102600.0,0.00058882]
[1733400231961,0.31758805,102610.0,102600.0,0.00058882]
[1733400234444,0.28088905,102610.0,102600.0,0.00058882]
[1733400239812,0.28088905,102610.0,102600.0,0.00232402]
[1733400240533,0.11136726,102610.0,102600.0,0.3078092]
[1733400240723,0.11136726,102610.0,102600.0,0.30683464]
[1733400241178,0.11136726,102610.0,102600.0,0.38643464]
[1733400241400,0.11136726,102610.0,102600.0,0.27685502]
[1733400241642,0.11136726,102610.0,102600.0,0.08192402]
[1733400241906,0.11136726,102610.0,102600.0,0.27782956]
[1733400242133,0.10162275,102610.0,102600.0,0.27685502]
[1733400242827,0.01169121,102620.0,102610.0,0.194904]
[1733400243060,0.09967605,102620.0,102610.0,0.58066002]
[1733400243280,0.09967605,102620.0,102610.0,0.62578562]
[1733400243548,0.11136726,102620.0,102610.0,0.62578562]
[1733400243823,0.01169121,102640.0,102630.0,0.0803]
[1733400244151,0.01169121,102640.0,102630.0,0.38572786]
[1733400244152,0.11136726,102640.0,102630.0,0.38572786]
[1733400244356,0.0019467,102650.0,102640.0,0.194855]
[1733400244567,0.10162275,102650.0,102640.0,0.30540876]
[1733400244793,0.09967605,102650.0,102640.0,0.30443462]
[1733400245030,0.10162275,102650.0,102640.0,0.30443462]
[1733400245528,0.0019467,102660.0,102650.0,0.194836]
[1733400245765,0.10162275,102660.0,102650.0,0.30538964]
[1733400246022,0.0008676,102670.0,102660.0,0.194817]
[1733400246023,0.0028143,102670.0,102660.0,0.194817]
[1733400246239,0.10249035,102670.0,102660.0,0.30439662]
[1733400246458,0.09274584,102670.0,102660.0,0.30439662]
[1733400247144,0.389536,102690.0,102670.0,0.389591]
[1733400247367,0.09967605,102680.0,102670.0,0.49917062]
[1733400247990,0.09967605,102680.0,102670.0,0.30437762]
[1733400248409,0.08993979,102680.0,102670.0,0.30437762]
[1733400249172,0.009,102690.0,102680.0,0.194779]
[1733400249381,0.009,102690.0,102680.0,0.30533236]
[1733400249382,0.09967605,102690.0,102680.0,0.30533236]
[1733400249635,0.09967605,102690.0,102680.0,0.30435862]
[1733400250590,0.09985235,102690.0,102680.0,0.30435862]
[1733400250842,0.09011609,102690.0,102680.0,0.30435862]
[1733400251381,0.09011609,102690.0,102680.0,0.50435862]
[1733400252943,0.0001763,102690.0,102680.0,0.50435862]
[1733400254337,0.0001763,102690.0,102680.0,0.5174985]
[1733400254893,0.18662823,102710.0,102680.0,0.5174985]
[1733400255097,0.09967605,102700.0,102690.0,0.30433562]
[1733400255298,0.09967605,102700.0,102690.0,0.194756]
[1733400255507,0.09967605,102700.0,102690.0,0.19476]
[1733400256352,0.29441905,102700.0,102680.0,0.40808218]
[1733400256568,0.48917305,102700.0,102680.0,0.40808218]
[1733400256972,0.48917305,102700.0,102680.0,0.21331618]
[1733400257175,0.28468324,102700.0,102690.0,0.001]
[1733400258171,0.28468324,102700.0,102690.0,0.002]
[1733400258417,0.28468324,102700.0,102680.0,0.21331618]
[1733400258664,0.47943624,102700.0,102680.0,0.5176738]
[1733400258894,0.47943624,102700.0,102690.0,0.001]
[1733400259344,0.46969939,102700.0,102690.0,0.001]
[1733400259597,0.19476,102690.0,102680.0,0.21331618]
[1733400259857,0.29443605,102690.0,102680.0,0.21431618]
[1733400261105,0.29443605,102690.0,102680.0,0.21331618]
[1733400261584,0.2846992,102690.0,102680.0,0.21331618]
[1733400262094,0.2846992,102690.0,102680.0,0.21431618]
[1733400262319,0.2846992,102690.0,102680.0,0.21531618]
[1733400262556,0.2846992,102690.0,102680.0,0.2021763]
[1733400263741,0.2846992,102690.0,102680.0,0.2039109]
[1733400266058,0.27496235,102690.0,102680.0,0.2039109]
[1733400266320,0.27496235,102690.0,102680.0,0.02684322]
[1733400266573,0.37496235,102690.0,102680.0,0.02684322]
[1733400267040,0.37496235,102690.0,102680.0,0.00675911]
[1733400268143,0.36522485,102690.0,102680.0,0.00675911]
[1733400269422,0.36522485,102690.0,102680.0,0.0039109]
[1733400270739,0.36522485,102690.0,102680.0,0.19579052]
[1733400270740,0.29443605,102690.0,102680.0,0.19579052]
[1733400270960,0.29443605,102690.0,102680.0,0.11349052]
[1733400271205,0.29443605,102690.0,102680.0,0.0039109]
[1733400274802,0.31743605,102690.0,102680.0,0.0039109]
[1733400277083,0.31830345,102690.0,102680.0,0.0039109]
[1733400277760,0.41830345,102690.0,102680.0,0.0039109]
[1733400277985,0.51830345,102690.0,102680.0,0.0039109]
[1733400278511,0.50000345,102690.0,102680.0,0.0039109]
[1733400278752,0.69670345,102690.0,102680.0,0.0039109]
[1733400279482,0.69670345,102690.0,102680.0,0.0029109]
[1733400279973,0.70570345,102690.0,102680.0,0.0029109]
[1733400280921,0.70570345,102690.0,102680.0,0.0019109]
[1733400281115,0.71470345,102690.0,102680.0,0.0019109]
[1733400281796,0.1,102680.0,102650.0,0.27835406]
[1733400281805,0.194817,102660.0,102650.0,0.27835406]
[1733400282047,0.29449305,102660.0,102650.0,0.27835406]
[1733400282298,0.09967605,102660.0,102650.0,0.29039905]
[1733400282520,0.29449305,102660.0,102650.0,0.12162461]
[1733400282993,0.29449305,102660.0,102650.0,0.01304499]
[1733400283922,0.58317267,102660.0,102650.0,0.001]
[1733400284182,0.68317267,102660.0,102650.0,0.001]
[1733400284412,0.73097267,102660.0,102650.0,0.002]
[1733400284655,0.62139305,102660.0,102650.0,0.002]
[1733400285126,0.62139305,102660.0,102650.0,0.001]
[1733400285368,0.194874,102630.0,102620.0,0.12157842]
[1733400285635,0.29455005,102630.0,102620.0,0.12157842]
[1733400286097,0.48943505,102630.0,102620.0,0.10957962]
[1733400286332,0.48943505,102630.0,102610.0,0.13958203]
[1733400286590,0.48943505,102630.0,102610.0,0.14017085]
[1733400286591,0.29456905,102620.0,102610.0,0.14017085]
[1733400286846,0.29456905,102620.0,102610.0,0.00058882]
[1733400287098,0.29456905,102620.0,102610.0,0.11016844]
[1733400287331,0.29456905,102620.0,102610.0,0.00058882]
[1733400287809,0.29456905,102620.0,102610.0,0.01270788]
[1733400288067,0.29456905,102620.0,102610.0,0.00058882]
[1733400289328,0.29456905,102620.0,102610.0,0.00158882]
[1733400289547,0.29456905,102620.0,102610.0,0.11016844]
[1733400290029,0.29456905,102620.0,102610.0,0.11116844]
[1733400291179,0.29456905,102620.0,102610.0,0.00158882]
[1733400292356,0.29456905,102620.0,102610.0,0.11116844]
[1733400293134,0.29456905,102620.0,102610.0,0.00158882]
[1733400293775,0.389723,102640.0,102620.0,0.194893]
[1733400293959,0.29453205,102640.0,102620.0,0.10957962]
[1733400294194,0.194877,102630.0,102610.0,0.57806744]
[1733400294415,0.194877,102630.0,102620.0,0.10957962]
[1733400294619,0.194877,102630.0,102620.0,0.10822765]
[1733400294804,0.194877,102630.0,102620.0,0.10920198]
[1733400295450,0.194877,102630.0,102620.0,0.10922765]
[1733400295893,0.194877,102630.0,102620.0,0.10822765]
[1733400296304,0.194877,102630.0,102620.0,0.10922765]
[1733400296507,0.194877,102630.0,102620.0,0.001]
[1733400296916,0.194877,102630.0,102620.0,0.002]
[1733400297163,0.194877,102630.0,102620.0,0.00197433]
[1733400297619,0.194877,102630.0,102620.0,0.00297433]
[1733400298699,0.194877,102630.0,102620.0,0.002]
[1733400299972,0.31755305,102630.0,102620.0,0.002]
[1733400301987,0.31755305,102630.0,102620.0,0.11331442]
[1733400303233,0.31755305,102630.0,102620.0,0.29846342]
[1733400303461,0.31755305,102630.0,102620.0,0.11331442]
[1733400303667,0.023,102630.0,102620.0,0.37996342]
[1733400304301,0.217874,102630.0,102620.0,0.19481442]
[1733400304982,0.217874,102630.0,102620.0,0.19381442]
[1733400305403,0.217874,102630.0,102620.0,0.19481442]
[1733400305629,0.217874,102630.0,102620.0,0.11331442]
[1733400305835,0.217874,102630.0,102620.0,0.11231442]
[1733400306047,0.217874,102630.0,102620.0,0.11331442]
[1733400306260,0.217874,102630.0,102620.0,0.11231442]
[1733400306708,0.217874,102630.0,102620.0,0.11331442]
[1733400308020,0.217874,102630.0,102620.0,0.29846342]
[1733400309119,0.217874,102630.0,102620.0,0.11331442]
[1733400310180,0.023,102630.0,102620.0,0.29943774]
[1733400310411,0.023,102630.0,102620.0,0.29846342]
[1733400312289,0.023,102630.0,102620.0,0.63514304]
[1733400312468,0.023,102630.0,102620.0,0.68204304]
[1733400312703,0.023,102630.0,102620.0,0.57246342]
[1733400313139,0.023,102630.0,102620.0,0.3494605]
[1733400313352,0.023,102630.0,102620.0,0.5346095]
[1733400313590,0.0238681,102630.0,102620.0,0.5346095]
[1733400313855,0.0238681,102630.0,102620.0,0.97738414]
[1733400314074,0.1948,102670.0,102660.0,0.10957962]
[1733400314271,0.1948,102670.0,102650.0,0.3762406]
[1733400314272,0.48928805,102670.0,102650.0,0.3762406]
[1733400314487,0.48928805,102670.0,102650.0,0.37526662]
[1733400314933,0.48928605,102670.0,102650.0,0.37526662]
[1733400315350,0.194817,102660.0,102650.0,0.37527362]